Cogmind - Beta 17 @@@ ROGUE MODE // 2026.06.28 @ 15:13:43 Player: APerTAS Result: Core destroyed Performance ------------- Evolutions (0) 0 Regions Visited (1) 200 Robots Destroyed (2) 10 Value Destroyed (70) 70 Prototype IDs (4) 80 Alien Tech Used (0) 0 Bonus (0) 0 TOTAL SCORE: 360 Bonus ------- None Cogmind --------- Core Integrity 0/250 Matter 79/300 Energy 100/100 System Corruption 11% Temperature Cool (0) Movement Core (50) Location -10/Materials Parts ------- > --- POWER (1) -------- (None) > --- PROPULSION (2) --- (None) > --- UTILITY (2) ------ (None) > --- WEAPON (2) ------- (None) > --- INVENTORY (5) ---- Ion Engine Signal Interpreter Targeting Computer Light Armor Plating Grenade Launcher Peak State ------------ > --- POWER ------------ Light Ion Engine > --- PROPULSION ------- Light Treads > --- UTILITY ---------- Light Armor Plating > --- WEAPON ----------- Grenade Launcher > --- INVENTORY -------- Ion Engine Signal Interpreter Targeting Computer Light Armor Plating [Rating: 4] Favorites ----------- Power Light Ion Engine Engine Light Ion Engine Propulsion Light Treads Treads Light Treads Utility Light Armor Plating Protection Light Armor Plating Weapon Grenade Launcher Launcher Grenade Launcher Build | -11 -10 ------- Run | Yrd Mat Slots Evolved . | . . Power . | . . Propulsion . | . . Utility . | . . Weapon . | . . Parts Attached 4 | . 4 Power 1 | . 1 Engine 1 | . 1 Core . | . . Reactor . | . . Propulsion 1 | . 1 Treads 1 | . 1 Leg . | . . Wheel . | . . Hover . | . . Flight . | . . Utility 1 | . 1 Device . | . . Storage . | . . Processor . | . . Hackware . | . . Protection 1 | . 1 Artifact . | . . Weapon 1 | . 1 Energy Gun . | . . Energy Cannon . | . . Ballistic Gun . | . . Ballistic Cannon . | . . Launcher 1 | . 1 Special Weapon . | . . Impact Weapon . | . . Slashing Weapon . | . . Piercing Weapon . | . . Special Melee Weapon . | . . Unidentified Prototypes . | . . Parts Lost . | . . Power . | . . Propulsion . | . . Utility . | . . Weapon . | . . Highest Loss Streak . | . . To Critical Strikes . | . . Average Backups 3 | . 4 Power . | . . Propulsion . | . . Utility 2 | . 2 Weapon . | . . Tool/Special . | . . Unused Backups 4 | . 4 Power 1 | . 1 Propulsion . | . . Utility 3 | . 3 Weapon . | . . Tool/Special . | . . Average Slot Usage (%) 26 | . 26 Engine 9 | . 9 Treads 8 | . 8 Protection 7 | . 7 Peak Build Rating 4 | . 4 Average Rating 1 | . 1 On Entrance . | . . Avg Prop Armor Cover (%) . | . . Naked Turns 120 | . 120 Heaviest Build 6 | . 6 Greatest Support 20 | 3 20 Greatest Overweight (x) . | . . Average Overweight (x) . | . . Largest Inventory Capacity 5 | 5 5 Average Capacity 5 | 5 5 Most Carried 5 | . 5 Average Carried 4 | . 4 Final Capacity 5 | 5 5 Final Carried 5 | . 5 Class Distribution -------------------- 100% | Mutant Dominant Class ---------------- Mutant | -10/Materials Resources | -11 -10 ----------- Run | Yrd Mat Matter Collected 69 | 62 7 Remotely . | . . Salvage Created 30 | . 30 Parts 3 | . 3 Haulers Intercepted . | . . Recyclers Shooed . | . . Parts Field Recycled . | . . Retrieved Matter . | . . Parts Self-Destructed . | . . Prevented . | . . Parts Restored . | . . Kills | -11 -10 ------- Run | Yrd Mat Combat Hostiles Destroyed 1 | . 1 AOE 1 | . 1 Classes Destroyed 2 | . 2 Operator 1 | . 1 Grunt 1 | . 1 Best Kill Streak 1 | . 1 Combat Bots Only 1 | . 1 Max Kills in Single Turn 1 | . 1 Gunslinging . | . . Exploded 1 | . 1 Melee . | . . Uniques/NPCs Destroyed . | . . Combat | -11 -10 -------- Run | Yrd Mat Hostile Shots Fired 11 | . 11 Missed 3 | . 3 Hits 8 | . 8 Projectile 8 | . 8 Damage Taken 328 | . 328 Core 250 | . 250 Absorbed by Shields . | . . Core Remaining (%) 100 | 100 . Volleys Fired 4 | . 4 Largest 1 | . 1 Hottest 30 | . 30 Shots Fired 4 | . 4 Gun . | . . Cannon . | . . Launcher 4 | . 4 Special . | . . Kinetic . | . . Thermal . | . . Explosive 4 | . 4 Electromagnetic . | . . Robot Hit Streak 2 | . 2 Robot Miss Streak 2 | . 2 Penetration Max . | . . Secondary Targets . | . . Shots Hit Robots 2 | . 2 Core Hits 5 | . 5 Critical Kills . | . . Critical Parts Destroyed . | . . Critical Strikes . | . . Melee Attacks . | . . Impact . | . . Slashing . | . . Piercing . | . . Sneak Attacks . | . . Combat Hostiles . | . . Follow-up Attacks . | . . Damage Inflicted 417 | . 417 Guns . | . . Cannons . | . . Explosions 285 | . 285 Melee . | . . Ramming 132 | . 132 Kinetic . | . . Thermal 39 | . 39 Explosive 181 | . 181 Electromagnetic 65 | . 65 Impact . | . . Slashing . | . . Piercing . | . . Highest Corruption 11 | . 11 Average Corruption 6 | . 6 Corruption Purged . | . . Corruption Blocked . | . . Overload Shots . | . . Overflow Damage 29 | . 29 Projectiles . | . . Explosions 29 | . 29 Melee . | . . Knockbacks . | . . Impact . | . . Kinetic . | . . Secondary . | . . Self-Inflicted Damage 188 | . 188 Shots 4 | . 4 Rammed . | . . Targets Rammed . | . . Kicked . | . . Crushed . | . . Highest Temperature . | . . Average Temperature . | . . Received Heat Transfer 24 | . 24 Siege Activations . | . . Martial Activations . | . . Shielding Activations . | . . Robots Disrupted . | . . Combat Hostiles . | . . Robots Corrupted . | . . Combat Hostiles . | . . Parts Fried . | . . Impact Corruptions . | . . Robots Melted . | . . Combat Hostiles . | . . Parts Melted . | . . Heat Transferred 50 | . 50 Parts Sabotaged . | . . Parts Stolen . | . . Parts Stripped . | . . Power Chain Reactions 1 | . 1 Alert | -11 -10 ------- Run | Yrd Mat Maximum Alert Level . | . . Low Security (%) 100 | 100 100 Level 1 . | . . Level 2 . | . . Level 3 . | . . Level 4 . | . . Level 5 . | . . High Security . | . . Max Security . | . . Peak Influence 68 | . 68 Initial . | . . Average 17 | . 18 Influence Increases 166 | . 166 Destroy 0b10 Robot/C 20 | . 20 Destroy 0b10 Robot/NC 5 | . 5 Successful Hack 30 | . 30 Disable Machine 30 | . 30 Destroy Structure 36 | . 36 Lose Combat Pursuer 45 | . 45 Influence Decreases 110 | . 110 Time Decay 110 | . 110 Squads Dispatched . | . . Investigation . | . . Extermination . | . . Reinforcement . | . . Assault . | . . Garrison . | . . Intercept . | . . Searches Triggered . | . . Construction Impeded . | . . Haulers Reinforced . | . . Active Scanning Responses . | . . Cargo Convoy Interrupts . | . . Stealth | -11 -10 --------- Run | Yrd Mat Distress Signals 1 | . 1 Communications Jammed . | . . Distress Signals . | . . Times Spotted 8 | . 8 Peak Tracking Total 3 | . 3 Tactical Retreats 3 | . 3 Traps | -11 -10 ------- Run | Yrd Mat Traps Triggered . | . . Indirectly . | . . Trap Hack Attempts . | . . Triggered . | . . Disarmed . | . . Reprogrammed . | . . Reused . | . . Traps Extracted . | . . Installed . | . . Triggered . | . . Machines | -11 -10 ---------- Run | Yrd Mat Machines Disabled 2 | . 2 Max in Single Turn 2 | . 2 Machines Repaired . | . . Machines Dismantled . | . . Machines Sabotaged . | . . Overloaded Fab Kills . | . . Hacking | -11 -10 --------- Run | Yrd Mat Machines Accessed 6 | . 6 Terminals 5 | . 5 Fabricators . | . . Repair Stations . | . . Recycling Units 1 | . 1 Scanalyzers . | . . Garrison Access . | . . Total Hacks 21 | . 21 Successful 11 | . 11 Failed 10 | . 10 Catastrophic 3 | . 3 Database Lockouts . | . . Manual 14 | . 14 Terminals 18 | . 18 Fabricators . | . . Repair Stations . | . . Recycling Units 3 | . 3 Scanalyzers . | . . Garrison Access . | . . Terminal Hacks 7 | . 7 Prototype ID Bank 3 | . 3 Terminal Index 1 | . 1 Locate Traps 1 | . 1 Patrol Status 1 | . 1 Hauler Manifests 1 | . 1 Fabricator Hacks . | . . Repair Station Hacks . | . . Recycling Unit Hacks . | . . Scanalyzer . | . . Garrison Access Hacks . | . . Unauthorized Hacks 4 | . 4 Terminals 2 | . 2 Botnet 2 | . 2 Fabricators . | . . Repair Stations . | . . Recycling Units 2 | . 2 Reject 1 | . 1 Mask 1 | . 1 Scanalyzers . | . . Garrison Access . | . . Data Cores Recovered 1 | . 1 Used 1 | . 1 Hacking Detections 6 | . 6 Full Trace Events 3 | . 3 Feedback Events . | . . Feedback Blocked . | . . Robot Schematics Acquired . | . . Robots Built . | . . Authchips . | . . Time . | . . Total Robot Build Rating . | . . Part Schematics Acquired . | . . Parts Built . | . . Authchips . | . . Time . | . . Total Part Build Rating . | . . Part Studies Acquired . | . . Parts Repaired . | . . Time . | . . Parts Recycled . | . . Recycled Matter . | . . Retrieved Matter . | . . Retrieved Components . | . . Parts Scanalyzed . | . . Part Schematics Acquired . | . . Parts Damaged . | . . Bothacking | -11 -10 ------------ Run | Yrd Mat Used RIF Installer . | . . Robots Hacked . | . . Non-combat . | . . Combat . | . . Robot Hacks Applied . | . . Relay Couplers Released . | . . Fabnet Peak Effective % . | . . Robots Rewired . | . . Allies Hacked . | . . Hacks Repelled . | . . Allies | -11 -10 -------- Run | Yrd Mat Total Allies . | . . Largest Group . | . . Highest-Rated Group . | . . Highest-Rated Ally . | . . Total Orders . | . . Ally Attacks . | . . Total Damage . | . . Kills . | . . Allies Corrupted . | . . Allies Melted . | . . Intel | -11 -10 ------- Run | Yrd Mat Active Infowar (turns) . | . . Robot Analysis Total . | . . Derelict Logs Recovered . | . . Drone Launches . | . . Drone Recoveries . | . . Exploration | -11 -10 ------------- Run | Yrd Mat Turns Passed 427 | 11 416 Spaces Moved 441 | 21 420 Core 293 | 21 272 Treads 148 | . 148 Legs . | . . Wheels . | . . Hover . | . . Flight . | . . Fastest Speed 50 | 50 50 Average Speed 86 | 50 88 Slowest Speed 160 | 50 160 Overloaded Moves . | . . Propulsion Burnouts . | . . Robots Hopped . | . . Potential Cave-ins . | . . Cave-ins Triggered . | . . Exploration Rate (%) 34 | 3 65 Regions Visited 1 Branch Regions . Pre-discovered Areas . | . . Known Exits Taken . | . . Unknown Exits Taken 1 | 1 . Scrap Searched . | . . Spaces Dug . | . . Terrain Destroyed 32 | . 32 Melee . | . . Projectile . | . . AOE 32 | . 32 Terrain Rammed 20 | . 20 Walls Destroyed 1 | . 1 Machines Disabled . | . . Actions | -11 -10 --------- Run | Yrd Mat Total 478 | 20 458 Wait 3 | . 3 Move 440 | 20 420 Hop . | . . Pick Up 5 | . 5 Fast Attach 3 | . 3 Attach 2 | . 2 Detach 2 | . 2 Swap . | . . Drop . | . . Fire 4 | . 4 Melee . | . . Ram 19 | . 19 Kick . | . . Crush . | . . Escape Stasis . | . . Rewire . | . . Trap . | . . Miscellaneous . | . . Route ------- -11/Scrapyard -10/Materials (discovered 2 exits: [*Mat] / [*Min]) History --------- Turn | Location | Event 3 | -11/Scrapyard | Discovered new exit (range 15) 12 | -11/Scrapyard | Entered Materials 84 | -10/Materials | Discovered new exit (range 12) 115 | -10/Materials | Discovered new exit (range 15) 314 | -10/Materials | Build established: Mutant 394 | -10/Materials | Released all parts (3) 415 | -10/Materials | Core integrity fell below 50% 423 | -10/Materials | Core integrity fell below 20% 425 | -10/Materials | System corruption reached 10% 428 | -10/Materials | Core destroyed Last Messages --------------- 00416_ Destabilizing: Core damaged (-7). 00417_ Slammed into Material Compactor. 00417_ Destabilizing: Core damaged (-7). 00418_ Slammed into Material Compactor. 00418_ Destabilizing: Core damaged (-2). 00418_ Destabilizing: Core damaged (-5). 00419_ Slammed into Material Compactor. 00420_ Destabilizing: Core damaged (-2). 00420_ Destabilizing: System corrupted (+2). 00421_ Slammed into Material Compactor. 00421_ Destabilizing: System corrupted (+2). 00422_ Slammed into Material Compactor. 00422_ Destabilizing: Core damaged (-2). 00423_ Slammed into Material Compactor. 00423_ Destabilizing: Core damaged (-12). 00424_ Slammed into Material Compactor. 00424_ Destabilizing: System corrupted (+1). 00425_ Slammed into Material Compactor. 00427_ Destabilizing: System corrupted (+1). 00428_ Slammed into Material Compactor. Map ----- +----------------------------------------------------+ | ### #???# ####### # # | | #???# #?????# ##+#### | | #???# #?????# #??? | | #???# #?????# #######+#### | | ### #???########?????# #???# # | | ??# #????????????????# #???# # | | ??# #????????????????# #???# # | | ??# #????????????????# #???# # | | ??# #????????????????# #???# [[ # | | ??# #????????????????# #???# [ # | | ??# #????????????????# #???######## | | ??# #??????????#####?# ###########? | | ??# #??????????# #?# ## ?? | | ?## ##?????????#" #?# ## """" #? | | ## #?????????#T ### ## """" #? | | #?????????#" ## # """" #? | | " ####??????# + + #? | | # #??????# ## # """" #? | | ## # #??????# ## # """" #? | | ####### #########+#### # """" #? | | ^ # ?? | | #########?? | | #?????????? | | ####### ###############;#####??????? | | ##?????# #??????????# ! #??????? | | #??????# #??????????# @ #??????? | | #??????# #??????????# """ #??????? | | #??????# #??#######?# """""#??????? | | #??????# #??# ?# """""#??????? | | #??????# #??#""" ?# """""#??????? | | #??????# #??#""" ## """ #??????? | | +??????? ???#""" # #######? | | #??????? ???#""" ###### #? | | #??????? ???#""" #? | | ???????? ???# T #? | | ???????? ???#""" % # #? | | ???????? ???#""" # #? | | ???????? ???#""" # # #### ##? | | ????????????#""" # ### # #?? | | ????????????#""" # #?# + #?? | | ????????????# # ### """ # #?? | | ????????????######## + """ # #?? | | ???????????????????##### """ #####?? | | ???????????????????????# #?????? | | ???????????????????????########?????? | | ????????????????????????????????????? | | ????????????????????????????????????? | | ????????????????????????????????????? | | ????????????????????????????????????? | | | +----------------------------------------------------+ Best States ------------- Heat Dissipation 25 Energy Generation 10 Energy Capacity 125 Matter Stores 162 Matter Capacity 300 Sight Range 16 Terrain Scan Density 10 Armor Coverage 150 Evasion (%) 50 Recoil Reduction 1 Item Schematics ----------------- None Robot Schematics ------------------ None Fabricated ------------ Nothing Repaired ---------- Nothing Studied --------- None Alien Tech Used ----------------- None Achievements -------------- None Challenges ------------ None Game ------ Seed TowerRagnarokReplicator Manual? 0 Play Time 00:04:41 Cumulative 68.0 hours Start 2026.06.28 @ 15:09:29 End 2026.06.28 @ 15:13:43 Sessions 1 Manual Loads 0 Difficulty Rogue Special Mode None Game No. 214 Rogue 214 Adventurer 0 Explorer 0 Win Type - Total 0 Types 0/0/0/0/0/0/0/0/0/0 Lore% 63 Gallery% 37 Achievement% 36 Wizard Run 0 Options --------- Layout 0 ASCII 0 Keyboard 1 Movement Arrows Keybinds 0 Fullscreen 1 Font 24/Terminus Map View 64x52 Zoom Use 0% Tactical HUD 1 Map Filters NONE Filters NONE Steam 1 RUN: 8e507e6b-5ad5-46b4-9937-d3e81c8d0d8a